bitfinex/quotes_ETHUSD_20250823
["timestamp","ask_amount","ask_price","bid_price","bid_amount"]
[1755953823094,0.041,4720.8,4720.7,17.44445198]
[1755953824417,0.001,4721.2,4720.8,3.66]
[1755953824618,0.001,4721.2,4721.1,0.9459]
[1755953824790,0.001,4721.2,4721.1,9.3125]
[1755953824985,0.001,4721.2,4721.1,9.7763]
[1755953825509,0.001,4721.2,4721.1,9.3125]
[1755953825910,0.3063,4721.2,4721.1,9.0266]
[1755953826513,0.001,4721.2,4721.1,9.3125]
[1755953827032,0.3063,4721.2,4721.1,9.0266]
[1755953827244,0.001,4721.2,4721.1,9.0266]
[1755953827401,0.3063,4721.2,4721.1,9.0266]
[1755953828332,0.001,4721.2,4721.1,9.0266]
[1755953829526,0.001,4721.2,4721.1,9.3125]
[1755953830330,0.001,4721.2,4721.1,9.0266]
[1755953830541,0.3063,4721.2,4721.1,9.0266]
[1755953831933,0.001,4721.2,4721.1,9.0266]
[1755953832942,0.001,4721.2,4721.1,9.3125]
[1755953833242,0.001,4721.2,4721.1,9.7763]
[1755953833645,0.001,4721.2,4721.1,10.06036663]
[1755953836326,0.51721681,4721.2,4720.1,0.004]
[1755953836521,1.77929697,4721.2,4720.0,0.11052609]
[1755953836726,1.75614981,4721.1,4720.0,0.11052609]
[1755953836950,0.3053,4720.1,4719.8,0.024]
[1755953837229,0.3053,4720.1,4719.8,3.712]
[1755953837429,0.1984,4720.0,4719.8,3.712]
[1755953837766,0.3043,4719.9,4719.8,6.712]
[1755953838052,0.5037,4719.9,4719.8,3.712]
[1755953838854,0.5037,4719.9,4719.8,4.372]
[1755953839057,0.5037,4719.9,4719.8,0.024]
[1755953851260,0.72753,4719.9,4719.8,0.024]
[1755953860690,1.629,4720.2,4719.8,0.3154]
[1755953860887,1.629,4720.2,4719.8,0.1296]
[1755953860888,0.3025,4719.9,4719.8,0.1296]
[1755953863532,0.1056,4720.4,4719.8,0.868]
[1755953863888,0.5566,4720.4,4719.8,0.868]
[1755953864731,0.1056,4720.4,4719.8,0.868]
[1755953864928,0.52786537,4720.4,4719.8,0.868]
[1755953865130,0.1056,4720.4,4719.8,0.868]
[1755953866341,0.45505368,4720.3,4719.8,0.868]
[1755953866545,0.45505368,4720.2,4719.8,0.421]
[1755953866730,0.45505368,4720.1,4719.9,0.447]
[1755953866905,0.45505368,4720.0,4719.9,0.447]
[1755953867103,0.45505368,4720.0,4719.9,0.7384]
[1755953869253,0.51905368,4720.0,4719.8,0.1296]
[1755953869447,0.45505368,4719.9,4719.8,0.7896]
[1755953870535,0.45505368,4719.9,4719.8,1.5327]
[1755953870847,0.80379486,4720.5,4719.8,1.5327]
[1755953871009,0.72471414,4720.4,4719.8,1.5327]
[1755953871211,0.45751271,4720.3,4719.8,1.5327]
[1755953871450,0.45751271,4720.2,4719.8,1.5327]
[1755953871655,0.45751271,4720.1,4719.8,1.5327]
[1755953871824,0.45751271,4720.0,4719.8,1.5327]
[1755953872024,0.26720143,4720.4,4719.8,1.5327]
[1755953872331,0.62366017,4720.3,4719.8,1.5327]
[1755953872510,0.45752568,4720.2,4719.8,1.5327]
[1755953872713,0.45752568,4720.1,4719.8,1.0894]
[1755953872930,0.45752568,4720.0,4719.8,1.0894]
[1755953873131,0.16613449,4720.3,4719.8,1.0894]
[1755953873436,0.45753224,4720.2,4719.8,1.0894]
[1755953873604,0.45753224,4720.1,4719.9,0.4433]
[1755953873810,0.16613449,4720.3,4719.9,0.4433]
[1755953873811,0.45753224,4720.0,4719.9,0.66]
[1755953874025,0.45753224,4720.0,4719.9,1.0654]
[1755953874431,0.45752839,4720.5,4719.9,1.5087]
[1755953874634,0.63459339,4720.4,4719.9,1.5087]
[1755953874813,0.45752839,4720.3,4719.9,1.0654]
[1755953875013,0.45752839,4720.2,4719.9,1.0654]
[1755953875214,0.45752839,4720.1,4719.9,1.5087]
[1755953875415,0.177065,4720.4,4719.9,1.5087]
[1755953875615,0.45752408,4720.3,4719.9,1.5087]
[1755953875817,0.45752408,4720.2,4719.9,1.5087]
[1755953876143,0.45752408,4720.1,4719.9,1.5087]
[1755953876444,0.4576114,4720.3,4719.9,1.5087]
[1755953876645,0.4576114,4720.2,4719.9,1.5087]
[1755953876852,0.4576114,4720.1,4719.9,1.0654]
[1755953877037,0.4576114,4720.4,4719.9,1.0654]
[1755953877215,0.4576114,4720.3,4719.9,1.0654]
[1755953877417,0.4576114,4720.2,4719.9,1.0654]
[1755953877611,0.4576114,4720.1,4719.9,1.0654]
[1755953877817,0.4576114,4720.3,4719.9,1.0654]
[1755953878046,0.4576114,4720.2,4719.9,1.0654]
[1755953878241,0.4576114,4720.1,4719.9,1.0654]
[1755953878546,0.4576114,4720.3,4719.9,1.5087]
[1755953878749,0.4576114,4720.2,4719.9,1.5087]
[1755953879055,0.4576114,4720.3,4719.9,1.5087]
[1755953879254,0.4576114,4720.2,4719.9,1.5087]
[1755953879415,0.4576114,4720.3,4719.9,1.5087]
[1755953879620,0.4576114,4720.2,4719.9,1.5087]
[1755953879823,0.4576114,4720.2,4719.9,1.0654]
[1755953880428,0.4576114,4720.2,4719.9,0.7656]
[1755953880628,0.2985,4720.0,4719.9,0.1056]
[1755953882125,0.2985,4720.0,4719.8,0.024]
[1755953882324,0.7424,4720.0,4719.8,0.024]
[1755953882546,0.2985,4720.0,4719.8,0.024]
[1755953882753,0.3635,4719.9,4719.8,0.024]
[1755953882956,0.4576114,4720.1,4719.8,0.024]
[1755953883167,0.2985,4719.9,4719.8,0.024]
[1755953884948,0.41046114,4719.9,4719.8,0.024]
[1755953885149,0.662,4719.9,4719.8,0.024]
[1755953887055,0.2985,4719.9,4719.8,0.024]
[1755953893934,0.4576114,4720.0,4719.8,0.024]
[1755953894129,0.4576114,4720.2,4719.8,0.024]
[1755953894357,0.66117391,4720.1,4719.8,0.024]
[1755953894665,0.20356251,4720.1,4719.8,0.024]
[1755953894964,0.66117391,4720.1,4719.8,0.024]
[1755953895164,0.20356251,4720.1,4719.8,0.024]
[1755953895333,0.66117391,4720.1,4719.8,0.024]
[1755953895533,0.16692849,4720.0,4719.8,0.024]
[1755953895735,0.4576114,4720.1,4719.8,0.684]
[1755953895933,0.457611,4720.3,4720.0,0.9598]
[1755953896239,0.457611,4720.3,4720.2,0.66]
[1755953896439,0.001,4720.4,4720.2,1.4031]
[1755953896651,0.43667551,4720.8,4720.3,0.4433]
[1755953896852,0.001,4720.9,4720.4,0.4433]
[1755953898169,0.001,4720.9,4720.5,0.4433]
[1755953898539,0.001,4720.9,4720.8,0.2883]
[1755953898938,0.001,4720.9,4720.8,0.7476]
[1755953900043,0.001,4720.9,4720.8,0.2883]
[1755953902066,0.001,4720.9,4720.8,0.7476]
[1755953904979,0.001,4720.9,4720.8,0.2883]
[1755953905543,0.001,4720.9,4720.8,1.4076]
[1755953905876,0.001,4720.9,4720.8,1.5132]
[1755953906236,0.001,4720.9,4720.8,1.5332]
[1755953911473,0.001,4720.9,4720.8,1.5132]
[1755953925705,0.001,4720.9,4720.8,8.7732]
[1755953927119,0.001,4720.9,4720.8,4.5132]
[1755953931411,0.001,4720.9,4720.8,8.1292]
[1755953934226,0.001,4720.9,4720.8,8.1332]
[1755953934991,0.001,4720.9,4719.5,0.004]
[1755953934992,1.9224,4720.9,4719.5,0.004]
[1755953935190,9.00808535,4720.5,4717.0,0.457]
[1755953935426,0.76111948,4720.0,4719.8,0.11073039]
[1755953935594,2.58010603,4719.9,4717.9,3.691]
[1755953935791,0.2934,4718.9,4717.9,3.691]
[1755953936198,0.1498,4718.8,4717.9,3.691]
[1755953936527,0.1498,4718.8,4718.1,0.66]
[1755953936728,0.636835,4718.7,4718.0,3.0]
[1755953936893,0.2919,4718.2,4718.1,0.66]
[1755953937093,0.4431,4718.2,4717.9,3.691]
[1755953937299,0.1512,4718.1,4718.0,3.0]
[1755953937532,0.4417,4718.1,4718.0,3.0]
[1755953937917,0.4417,4718.1,4717.9,3.691]
[1755953938126,0.4417,4718.1,4716.9,1.628]
[1755953938127,0.1526,4718.0,4716.9,1.628]
[1755953938327,0.2892,4717.9,4716.8,0.02]
[1755953938941,0.5510802,4717.9,4716.8,0.02]
[1755953939098,0.5510802,4717.9,4716.9,0.66]
[1755953939302,0.5510802,4717.9,4716.8,0.02]
[1755953939921,0.5510802,4717.9,4716.9,0.66]
[1755953943657,0.3970802,4717.9,4716.9,0.66]
[1755953944228,0.5510802,4717.9,4716.9,0.66]
[1755953945162,0.5510802,4717.9,4717.4,0.1056]
[1755953945776,0.3970802,4717.9,4717.4,0.1056]
[1755953946072,0.92617,4717.9,4717.4,0.1056]
[1755953946294,7.0,4719.5,4716.9,0.66]
[1755953946295,0.154,4719.1,4717.1,0.66]
[1755953946479,0.1056,4718.8,4717.9,0.66]
[1755953946686,0.1056,4719.0,4718.3,0.1056]
[1755953946888,0.2525454,4718.9,4718.3,0.1056]
[1755953948574,0.063,4718.4,4718.3,0.7656]
[1755953949577,0.2525454,4718.9,4718.3,0.7656]
[1755953949987,0.2525454,4718.9,4718.4,0.66]
[1755953950279,1.7356,4719.3,4718.7,0.1056]
[1755953950478,0.063,4718.8,4718.7,0.1056]
[1755953951172,0.064,4718.8,4718.7,0.1056]
[1755953951550,0.001,4718.8,4718.7,0.1056]
[1755953952475,0.001,4718.8,4718.7,0.4193]
[1755953952687,0.001,4718.8,4718.7,0.1056]
[1755953953009,0.0042,4718.8,4718.7,0.1056]
[1755953953958,0.001,4718.8,4718.7,0.1056]
[1755953954285,0.001,4718.8,4718.7,0.7656]
[1755953954487,0.001,4718.8,4718.7,1.0793]
[1755953955466,0.001,4718.8,4718.7,1.5363]
[1755953956494,0.001,4718.8,4718.7,1.0793]
[1755953957473,0.001,4718.8,4718.7,1.5363]
[1755953962800,0.001,4718.8,4718.7,1.0793]
[1755953963768,0.1,4718.8,4718.7,0.1056]
[1755953963972,0.93282157,4718.8,4718.7,0.1056]
[1755953964272,0.86538818,4718.8,4718.7,0.1056]
[1755953968775,0.66754883,4718.8,4718.7,0.1056]
[1755953969200,1.63407049,4718.8,4718.7,0.1056]
[1755953969383,2.47424809,4718.8,4718.2,0.004]
[1755953969696,0.86497057,4718.3,4718.2,0.004]
[1755953969978,1.51724248,4718.3,4718.2,0.004]
[1755953970182,2.40588271,4718.3,4718.2,0.004]
[1755953970617,2.40588106,4718.3,4718.2,0.004]
[1755953970908,2.40588202,4718.3,4718.2,0.004]
[1755953971323,2.20813197,4718.3,4718.2,0.004]
[1755953971677,2.4058702,4718.3,4718.2,0.004]
[1755953972085,1.64649963,4718.3,4718.2,0.004]
[1755953972412,1.84424215,4718.3,4718.2,0.004]
[1755953972592,1.54050232,4718.3,4718.2,0.004]
[1755953973194,1.5405396,4718.3,4718.2,0.004]
[1755953974113,1.3628396,4718.3,4718.2,0.004]
[1755953976220,1.36300573,4718.3,4718.2,0.004]
[1755953976423,1.97981189,4718.3,4718.2,0.004]
[1755953977298,2.54166921,4718.3,4718.2,0.004]
[1755953978018,2.7395068,4718.3,4718.2,0.004]
[1755953978195,0.45452157,4718.3,4718.2,0.7616]
[1755953978395,0.45452157,4718.3,4718.2,1.5272]
[1755953980902,0.001,4718.8,4718.2,1.5272]
[1755953981102,0.45586055,4718.7,4718.2,1.5272]
[1755953981310,0.45586055,4718.6,4718.2,1.0564]
[1755953981489,0.45586055,4718.5,4718.3,0.4708]
[1755953981695,0.45586055,4718.4,4718.2,0.664]
[1755953981998,0.001,4718.8,4718.6,0.1056]
[1755953982201,0.45586265,4718.7,4718.6,0.1056]
[1755953982526,0.45586265,4718.7,4718.6,0.8632]
[1755953982720,0.001,4718.8,4718.6,0.8632]
[1755953982893,0.001,4718.8,4718.7,0.4708]
[1755953983095,0.45687967,4718.8,4718.7,0.7576]
[1755953983292,0.001,4718.8,4718.7,0.7576]
[1755953987733,1.13905586,4720.6,4718.8,0.66]
[1755953987890,0.0258,4720.9,4720.2,3.66]
[1755953988090,0.0258,4720.9,4720.8,0.2868]
[1755953988325,0.0258,4720.9,4720.8,0.9468]
[1755953988509,0.0258,4720.9,4720.8,5.087]
[1755953988708,0.0258,4720.9,4720.8,8.087]
[1755953988908,0.0258,4720.9,4720.8,17.09508535]
[1755953989128,0.0258,4720.9,4720.8,8.089]
[1755953990792,0.0258,4720.9,4720.8,4.385]
[1755953990990,0.0258,4720.9,4720.8,8.088]
[1755953991223,0.0258,4720.9,4720.8,3.9468]
[1755953991724,0.3125,4720.9,4720.3,1.629]
[1755953992022,0.7612,4720.9,4720.3,1.629]
[1755953993399,0.0258,4720.9,4720.8,0.2977]
[1755953997901,0.0258,4720.9,4720.8,0.4033]
[1755953999229,0.0258,4720.9,4720.8,0.8415]
[1755954000199,0.0258,4720.9,4720.8,1.3959]
[1755954000451,0.0258,4720.9,4720.8,5.71916526]
[1755954000626,0.0258,4720.9,4720.8,5.1905]
[1755954001414,0.0258,4720.9,4720.8,1.5015]
[1755954001714,0.0258,4720.9,4720.8,5.1895]
[1755954001924,0.0258,4720.9,4720.8,1.5015]
[1755954002140,0.0258,4720.9,4720.8,4.7513]
[1755954002322,0.0258,4720.9,4720.8,5.1895]
[1755954006153,0.0258,4720.9,4720.8,1.5015]
[1755954006368,0.0258,4720.9,4720.8,5.1865]
[1755954006550,0.0258,4720.9,4720.8,1.5015]
[1755954006852,0.0258,4720.9,4720.8,5.1835]
[1755954007149,0.0258,4720.9,4720.8,5.1825]
[1755954008054,0.3125,4720.9,4720.8,6.7856]
[1755954008624,0.7612,4720.9,4720.8,6.7846]
[1755954008952,0.7612,4720.9,4720.8,3.7846]
[1755954009161,0.7612,4720.9,4720.8,0.1056]
[1755954009343,0.7612,4720.9,4720.8,3.7836]
[1755954009660,0.7612,4720.9,4720.8,0.1056]
[1755954009862,0.7612,4720.9,4720.8,3.7836]
[1755954012841,0.7612,4720.9,4720.8,3.678]
[1755954013951,0.0258,4720.9,4720.8,3.9757]
[1755954014167,0.0258,4720.9,4720.8,8.53739149]
[1755954014341,0.0258,4720.9,4720.8,8.1795]
[1755954016067,0.0258,4720.9,4720.8,7.7413]
[1755954016431,0.3125,4720.9,4720.8,6.7796]
[1755954017680,0.3125,4720.9,4720.8,3.1056]
[1755954017977,0.3125,4720.9,4720.8,6.7766]
[1755954018283,0.7612,4720.9,4720.8,6.7766]
[1755954018656,0.3125,4720.9,4720.8,6.7766]
[1755954021284,0.3125,4720.9,4720.8,3.7766]
[1755954021672,0.3125,4720.9,4720.8,0.1056]
[1755954021862,0.3395,4720.9,4720.8,3.7736]
[1755954022091,0.8065,4720.9,4720.8,0.1056]
[1755954022275,0.8065,4720.9,4720.8,3.7706]
[1755954022481,0.3395,4720.9,4720.8,3.7706]
[1755954024505,0.3395,4720.9,4720.8,0.1056]
[1755954024707,0.3395,4720.9,4720.8,3.7666]
[1755954026626,0.3395,4720.9,4719.5,4.26]
[1755954026627,0.8065,4720.9,4718.7,0.11069576]
[1755954026830,0.58300607,4720.8,4718.7,0.11069576]
[1755954026997,0.45650552,4720.7,4719.1,3.689]
[1755954027326,0.59350055,4720.8,4719.1,3.689]
[1755954027527,0.467,4720.7,4719.1,3.689]
[1755954027685,0.1745,4719.3,4719.1,3.689]
[1755954028323,0.6386,4719.3,4719.1,3.689]
[1755954028536,0.1745,4719.3,4719.1,3.689]
[1755954029204,0.4641,4719.8,4719.1,3.689]
[1755954031040,0.1774,4719.3,4719.1,3.689]
[1755954033105,0.6444,4719.3,4719.1,3.689]
[1755954033413,0.6444,4719.3,4719.0,3.68]
[1755954034131,0.6444,4719.3,4719.1,0.004]
[1755954036234,0.75449055,4719.3,4719.1,0.004]
[1755954036411,0.75,4719.3,4719.1,0.004]
[1755954037823,0.283,4719.3,4719.1,0.004]
[1755954038005,0.75,4719.3,4719.1,0.004]
[1755954039938,6.42335832,4719.3,4719.1,0.004]
[1755954040137,7.92911959,4719.3,4719.1,0.004]
[1755954040943,16.35911959,4719.3,4719.1,0.004]
[1755954042339,16.69075556,4719.3,4719.1,0.004]
[1755954043514,20.19258942,4719.3,4719.1,0.004]
[1755954044142,20.3892524,4719.3,4719.1,0.004]
[1755954046938,18.9592524,4719.3,4719.1,0.004]
[1755954047115,11.9592524,4719.3,4719.1,0.004]
[1755954047321,11.62761643,4719.3,4719.1,0.004]
[1755954048644,11.6275005,4719.3,4719.1,0.004]
[1755954049618,12.19359805,4719.3,4719.1,0.004]
[1755954049947,12.29919805,4719.3,4719.1,0.004]
[1755954050144,12.29922353,4719.3,4719.1,0.004]
[1755954050708,11.73312598,4719.3,4719.1,0.004]
[1755954051011,11.73173953,4719.3,4719.1,0.004]
[1755954051225,15.23973953,4719.3,4719.1,0.004]
[1755954051641,15.65633099,4719.3,4719.1,0.004]
[1755954052845,6.28709302,4719.0,4718.7,0.004]
[1755954053046,13.1613616,4718.9,4718.7,0.004]
[1755954053248,13.6986616,4718.9,4718.7,0.004]
[1755954053426,16.01455209,4718.9,4718.7,0.004]
[1755954054029,16.76982866,4718.9,4718.7,0.004]
[1755954054230,16.01455209,4718.9,4718.7,0.004]
[1755954054551,16.01461893,4718.9,4718.7,0.004]
[1755954055446,15.58291893,4718.9,4718.7,0.004]
[1755954055644,12.94006129,4718.9,4718.7,0.004]
[1755954055849,15.05919922,4718.9,4718.7,0.004]
[1755954056023,15.49089922,4718.9,4718.7,0.004]
[1755954056357,12.615481,4718.9,4718.7,0.004]
[1755954056647,12.183781,4718.9,4718.7,0.004]
[1755954056821,12.18487318,4718.9,4718.7,0.004]
[1755954057028,14.30401111,4718.9,4718.7,0.004]
[1755954057815,14.73571111,4718.9,4718.7,0.004]
[1755954059019,14.53889171,4718.9,4718.7,0.004]
[1755954059214,15.67794757,4718.9,4718.7,0.004]
[1755954059417,15.24624757,4718.9,4718.7,0.004]
[1755954060448,24.27579529,4718.9,4718.7,0.004]
[1755954060952,23.56843943,4718.9,4718.7,0.004]
[1755954061321,0.66,4718.6,4718.2,0.004]
[1755954061534,2.1195871,4717.9,4717.7,0.004]
[1755954061729,11.19816288,4717.9,4717.7,0.004]
[1755954062144,11.62986288,4717.9,4717.7,0.004]
[1755954062364,9.07857578,4717.9,4717.7,0.004]
[1755954062659,9.42369425,4717.9,4717.8,0.3121]
[1755954062865,11.82839949,4717.9,4717.8,0.3121]
[1755954063060,11.82839949,4717.9,4717.8,0.024]
[1755954063861,10.69168106,4717.9,4717.8,0.024]
[1755954064064,22.47791588,4717.9,4717.8,0.024]
[1755954064249,19.92882878,4717.9,4717.8,0.024]
[1755954064568,13.01886816,4717.9,4717.8,0.024]
[1755954064863,10.89928106,4717.9,4717.8,0.024]
[1755954066446,11.05855227,4717.9,4717.8,0.024]
[1755954066669,13.17813937,4717.9,4717.8,0.024]
[1755954066838,16.68613937,4717.9,4717.8,0.024]
[1755954067738,17.11783937,4717.9,4717.8,0.024]
[1755954068165,15.19608155,4717.9,4717.8,0.024]
[1755954068339,14.76438155,4717.9,4717.8,0.024]
[1755954068768,16.88395906,4717.9,4717.8,0.024]
[1755954068971,14.56655227,4717.9,4717.8,0.024]
[1755954069277,7.17195227,4717.9,4717.8,0.7468]
[1755954069570,10.18195227,4717.9,4717.8,0.7468]
[1755954069768,11.3221894,4717.9,4717.8,0.7468]
[1755954070187,10.49745227,4717.9,4717.8,0.024]
[1755954070975,11.35541246,4717.9,4717.8,0.024]
[1755954071161,11.78711246,4717.9,4717.8,0.024]
[1755954071363,3.66,4717.8,4717.7,0.004]
[1755954071558,5.85487711,4717.8,4717.7,0.004]
[1755954071776,9.32491692,4717.8,4717.7,0.2921]
[1755954071978,8.77051692,4717.8,4717.7,0.7268]
[1755954072843,11.86564895,4717.8,4717.7,0.004]
[1755954073049,9.74601692,4717.8,4717.7,0.004]
[1755954073249,12.49516707,4717.8,4717.7,0.004]
[1755954073575,12.06346707,4717.8,4717.7,0.004]
[1755954074075,9.94383504,4717.8,4717.7,0.004]
[1755954075985,9.62633504,4717.8,4717.7,0.2921]
[1755954076148,12.06146707,4717.8,4717.7,0.004]
[1755954076348,0.66,4717.7,4716.8,0.4587]
[1755954076590,0.1056,4717.4,4716.8,0.024]
[1755954076797,13.45129425,4717.4,4717.3,0.2921]
[1755954077002,13.45129425,4717.4,4717.3,0.7268]
[1755954077003,11.21729425,4717.4,4717.3,0.7268]
[1755954077493,11.54899811,4717.4,4717.3,0.7268]
[1755954078294,3.508,4716.4,4712.3,1.63]
[1755954078500,1.7992064,4715.9,4715.2,0.4565]
[1755954078807,9.24550065,4715.9,4715.2,0.4565]
[1755954079160,7.81769425,4715.9,4715.2,0.4565]
[1755954079358,9.43543887,4715.9,4715.2,0.4565]
[1755954079556,9.43530124,4715.9,4715.2,0.4565]
[1755954080492,9.43530124,4715.9,4712.7,0.11082998]
[1755954080493,5.83039145,4715.9,4715.8,0.333]
[1755954080792,5.83039145,4715.9,4715.8,0.7895]
[1755954080998,8.77430124,4715.9,4715.8,0.7895]
[1755954081154,7.35421721,4715.9,4715.8,0.7895]
[1755954081666,0.45469425,4715.9,4715.8,0.7895]
[1755954081869,3.703,4716.0,4715.8,0.7895]
[1755954082057,3.703,4716.0,4715.9,0.4565]
[1755954082262,3.703,4716.0,4715.9,0.7695]
[1755954082863,3.705,4716.1,4715.9,0.7695]
[1755954083095,3.705,4716.1,4716.0,0.4565]
[1755954083294,3.705,4716.1,4716.0,0.7695]
[1755954084867,3.704,4716.3,4716.0,0.7695]
[1755954085199,1.63,4717.0,4716.1,0.4565]
[1755954085398,3.701,4716.9,4716.1,0.4565]
[1755954085697,3.701,4716.9,4716.8,0.313]
[1755954086087,3.701,4716.9,4716.8,0.7695]
[1755954086990,1.63,4717.7,4716.8,0.7695]
[1755954087190,3.7,4717.6,4716.8,0.313]
[1755954087495,1.65,4717.8,4716.9,0.4565]
[1755954088098,1.65,4717.8,4717.7,0.313]
[1755954088398,5.349,4717.8,4717.7,0.7695]
[1755954088981,0.02,4717.8,4717.7,0.7695]
[1755954089175,0.02,4717.8,4717.7,0.8751]
[1755954090304,0.02,4717.8,4717.7,0.7695]
[1755954090502,0.02,4717.8,4717.7,0.313]
[1755954090702,0.69096,4717.8,4717.0,0.4565]
[1755954090888,0.3086,4717.8,4716.5,0.4565]
[1755954091088,3.3086,4717.8,4716.1,0.4565]
[1755954091293,1.00636,4717.7,4716.1,0.4565]
[1755954091627,0.1064,4716.8,4716.2,0.1064]
[1755954091838,3.698,4716.7,4716.2,0.1064]
[1755954092222,3.698,4716.7,4716.6,0.313]
[1755954092424,1.63,4717.2,4716.6,0.7695]
[1755954092733,3.697,4717.0,4716.7,0.4565]
[1755954092939,3.697,4717.0,4716.9,0.313]
[1755954093233,3.697,4717.0,4716.9,0.7695]
[1755954093407,3.697,4717.0,4716.5,0.1064]
[1755954093607,3.697,4717.0,4716.5,0.5629]
[1755954093817,3.697,4717.0,4716.5,0.1064]
[1755954093999,3.697,4717.0,4716.2,0.1064]
[1755954094199,0.1064,4716.8,4716.2,0.1064]
[1755954094504,0.1064,4716.8,4716.7,0.313]
[1755954094705,0.1064,4716.8,4716.7,0.7695]
[1755954094913,0.1056,4717.4,4716.7,0.8759]
[1755954095117,0.1056,4717.4,4716.8,0.4565]
[1755954095330,0.1056,4717.4,4717.3,0.313]
[1755954095833,0.1056,4717.4,4717.3,0.7695]
[1755954096022,3.693,4717.5,4717.3,0.7695]
[1755954096224,3.693,4717.5,4717.4,0.4565]
[1755954096426,0.1256,4717.8,4717.4,0.7695]
[1755954096612,0.02,4717.8,4717.4,0.8751]
[1755954096815,0.02,4717.8,4717.5,0.4565]
[1755954097131,0.02,4717.8,4717.7,0.313]
[1755954097626,0.02,4717.8,4717.7,0.8751]
[1755954097837,0.02,4717.8,4717.7,0.7695]
[1755954098028,0.02,4717.8,4717.7,0.8751]
[1755954108761,0.02,4717.8,4717.7,1.5351]
[1755954112374,0.02,4717.8,4717.7,0.8751]
[1755954113378,0.02,4717.8,4717.7,0.4186]
[1755954114182,0.02,4717.8,4717.7,0.8465]
[1755954115261,0.02,4717.8,4717.7,1.5065]
[1755954118081,0.02,4717.8,4717.7,5.7665]
[1755954119992,0.02,4717.8,4717.7,5.851391]
[1755954120959,0.02,4717.8,4717.7,9.518391]
[1755954124507,0.02,4717.8,4717.7,5.851391]
[1755954124671,0.02,4717.8,4717.7,9.513391]
[1755954125004,0.02,4717.8,4717.7,9.4285]
[1755954125206,0.02,4717.8,4717.7,9.4275]
[1755954126102,0.02,4717.8,4717.7,8.9996]
[1755954126670,0.3299,4717.8,4717.7,8.6856]
[1755954127088,0.3299,4717.8,4717.7,4.4256]
[1755954130674,0.02,4717.8,4717.7,4.4256]
[1755954130877,0.02,4717.8,4717.7,4.7372]
[1755954131495,0.02,4717.8,4717.7,4.4256]
[1755954131702,0.3299,4717.8,4717.7,4.4256]
[1755954132473,0.3299,4717.8,4717.7,0.1056]
[1755954132685,0.5247,4717.8,4717.7,3.7586]
[1755954133714,0.5257,4717.8,4717.7,3.7586]
[1755954135091,0.3309,4717.8,4717.7,3.7586]
[1755954138017,0.7185,4717.8,4717.7,3.7536]
[1755954139687,0.7185,4717.8,4717.7,3.7036]
[1755954145115,0.3309,4717.8,4717.7,3.7036]
[1755954148540,0.021,4717.8,4717.7,4.6672]
[1755954148845,0.021,4717.8,4717.7,5.1074]
[1755954151950,0.021,4717.8,4717.7,5.34980546]
[1755954152463,0.021,4717.8,4717.7,5.43469546]
[1755954153778,0.021,4717.8,4717.7,5.19229]
[1755954154568,0.021,4717.8,4717.7,5.43469546]
[1755954155489,0.021,4717.8,4717.7,5.19229]
[1755954159574,0.021,4717.8,4717.7,5.43469546]
[1755954161187,0.001,4718.2,4717.8,0.66]
[1755954161507,0.001,4718.2,4718.1,9.9885659]
[1755954161795,0.001,4718.2,4718.1,13.7401659]
[1755954161996,0.001,4718.2,4718.1,14.1803659]
[1755954162483,0.001,4718.2,4718.1,14.2652439]
[1755954163778,0.001,4718.7,4718.2,0.66]
[1755954163980,0.001,4718.7,4718.6,10.0941659]
[1755954164186,0.001,4718.7,4718.6,4.7152]
[1755954164406,0.001,4718.7,4718.6,13.7401659]
[1755954165167,0.001,4718.7,4718.6,13.8250419]
[1755954165616,0.3122,4718.7,4718.6,13.5214419]
[1755954165771,0.3122,4718.7,4718.6,4.496476]
[1755954165970,0.7532,4718.7,4718.6,4.496476]
[1755954166505,0.3122,4718.7,4718.6,4.496476]
[1755954166891,0.001,4718.7,4718.6,4.496476]
[1755954167211,0.3122,4718.7,4718.6,4.496476]
[1755954171680,0.001,4718.7,4718.6,13.8152419]
[1755954172291,0.001,4718.7,4718.6,14.51354736]
[1755954174196,0.001,4718.7,4718.6,14.2711419]
[1755954177131,0.001,4718.7,4718.6,18.5311419]
[1755954179903,0.001,4718.7,4718.6,18.0752419]
[1755954180833,0.001,4718.7,4718.6,18.0732419]
[1755954181731,0.001,4718.7,4718.6,18.5291419]
[1755954182619,0.001,4718.7,4718.6,18.0732419]
[1755954182951,0.2913,4718.7,4718.6,17.7794419]
[1755954183153,0.7219,4718.7,4718.6,17.7794419]
[1755954183323,0.2913,4718.7,4718.6,17.7794419]
[1755954184951,0.001,4718.7,4718.6,18.0732419]
[1755954185125,0.001,4718.7,4718.6,18.5291419]
[1755954185325,0.001,4718.7,4718.6,18.77154736]
[1755954185860,0.001,4718.7,4718.6,18.5291419]
[1755954186852,0.001,4718.7,4718.6,18.77154736]
[1755954189428,0.001,4718.7,4718.6,18.5291419]
[1755954190059,0.001,4719.2,4718.7,0.66]
[1755954190260,0.001,4719.2,4719.1,9.9787659]
[1755954190424,0.001,4719.2,4719.1,4.4076]
[1755954190762,0.2913,4719.2,4719.1,13.4325659]